fUSD/lending_fUSD_20250217
["ID","MTS","AMOUNT","RATE_DAILY","PERIOD"]
[353386964,1739808648074,-500.0,0.00013698,2]
[353386966,1739808648086,-500.0,0.00013698,2]
[353386967,1739808648097,-500.0,0.00013698,2]
[353386968,1739808648109,-500.0,0.00013698,2]
[353386969,1739808648120,-500.0,0.00013698,2]
[353386970,1739808648131,-500.0,0.00013698,2]
[353386972,1739808648142,-504.65143017,0.00013698,2]
[353386974,1739808648154,-500.0,0.00013698,2]
[353386977,1739808648165,-505.33264571,0.00013698,2]
[353386978,1739808648176,-500.0,0.00013698,2]
[353386981,1739808648187,-500.0,0.00013698,2]
[353386982,1739808648198,-612.03,0.00013698,2]
[353386984,1739808648209,-500.0,0.00013698,2]
[353386986,1739808648220,-367.09384496,0.00013698,2]
[353386989,1739808648231,-500.0,0.00013698,2]
[353386991,1739808648242,-500.0,0.00013698,2]
[353386993,1739808648252,-500.0,0.00013698,2]
[353386995,1739808648263,-500.0,0.00013698,2]
[353386997,1739808648274,-500.0,0.00013698,2]
[353386999,1739808648285,-500.0,0.00013698,2]
[353387001,1739808648298,-500.0,0.00013698,2]
[353387003,1739808648310,-500.0,0.00013698,2]
[353387005,1739808648320,-500.0,0.00013698,2]
[353387007,1739808648331,-500.0,0.00013698,2]
[353387009,1739808648343,-500.0,0.00013698,2]
[353387011,1739808648353,-500.0,0.00013698,2]
[353387013,1739808648369,-500.0,0.00013698,2]
[353387015,1739808648382,-590.37,0.00013698,2]
[353387017,1739808648394,-500.0,0.00013698,2]
[353387019,1739808648405,-371.49346741,0.00013698,2]
[353387021,1739808648416,-500.0,0.00013698,2]
[353387023,1739808648427,-500.0,0.00013698,2]
[353387025,1739808648439,-500.0,0.00013698,2]
[353387028,1739808648450,-500.0,0.00013698,2]
[353387030,1739808648460,-500.0,0.00013698,2]
[353387032,1739808648471,-500.0,0.00013698,2]
[353387033,1739808648481,-500.0,0.00013698,2]
[353387035,1739808648492,-500.0,0.00013698,2]
[353387038,1739808648504,-500.0,0.00013698,2]
[353387040,1739808648515,-500.0,0.00013698,2]
[353387042,1739808648526,-500.0,0.00013698,2]
[353387044,1739808648536,-517.97418473,0.00013698,2]
[353387046,1739808648551,-500.0,0.00013698,2]
[353387048,1739808648562,-500.0,0.00013698,2]
[353387050,1739808648573,-500.0,0.00013698,2]
[353387052,1739808648590,-500.0,0.00013698,2]
[353387055,1739808648606,-500.0,0.00013698,2]
[353387057,1739808648620,-500.0,0.00013698,2]
[353387059,1739808648635,-506.49,0.00013698,2]
[353387060,1739808648646,-500.0,0.00013698,2]
[353387061,1739808648658,-500.0,0.00013698,2]
[353387062,1739808648673,-500.0,0.00013698,2]
[353387064,1739808648687,-500.0,0.00013698,2]
[353387066,1739808648702,-633.0,0.00013698,2]
[353387067,1739808648716,-500.0,0.00013698,2]
[353387068,1739808648731,-500.0,0.00013698,2]
[353387069,1739808648745,-500.0,0.00013698,2]
[353387070,1739808648758,-500.0,0.00013698,2]
[353387071,1739808648770,-500.0,0.00013698,2]
[353387072,1739808648783,-500.0,0.00013698,2]
[353387073,1739808648800,-500.0,0.00013698,2]
[353387075,1739808648813,-505.75739179,0.00013698,2]
[353387076,1739808648825,-500.0,0.00013698,2]
[353387077,1739808648838,-500.0,0.00013698,2]
[353387078,1739808648851,-510.94886379,0.00013698,2]
[353387079,1739808648865,-603.72,0.00013698,2]
[353387080,1739808648878,-500.0,0.00013698,2]
[353387081,1739808648892,-524.42,0.00013698,2]
[353387082,1739808648904,-758.79,0.00013698,2]
[353387083,1739808648917,-500.0,0.00013698,2]
[353387084,1739808648929,-500.0,0.00013698,2]
[353387085,1739808648945,-1073.87,0.00013698,2]
[353387086,1739808648958,-500.0,0.00013698,2]
[353387087,1739808648972,-500.0,0.00013698,2]
[353387088,1739808648985,-500.0,0.00013698,2]
[353387089,1739808648999,-500.0,0.00013698,2]
[353387090,1739808649012,-500.0,0.00013698,2]
[353387091,1739808649026,-500.0,0.00013698,2]
[353387092,1739808649040,-500.0,0.00013698,2]
[353387093,1739808649057,-500.0,0.00013698,2]
[353387094,1739808649071,-500.0,0.00013698,2]
[353387095,1739808649085,-500.0,0.00013698,2]
[353387096,1739808649096,-500.0,0.00013698,2]
[353387097,1739808649108,-500.0,0.00013698,2]
[353387098,1739808649120,-521.99,0.00013698,2]
[353387099,1739808649132,-500.0,0.00013698,2]
[353387100,1739808649145,-500.0,0.00013698,2]
[353387101,1739808649160,-500.0,0.00013698,2]
[353387102,1739808649172,-500.0,0.00013698,2]
[353387103,1739808649183,-500.0,0.00013698,2]
[353387104,1739808649194,-500.0,0.00013698,2]
[353387105,1739808649205,-500.0,0.00013698,2]
[353387106,1739808649218,-578.99,0.00013698,2]
[353387107,1739808649230,-500.0,0.00013698,2]
[353387108,1739808649245,-500.0,0.00013698,2]
[353387109,1739808649257,-949.81,0.00013698,2]
[353387110,1739808649269,-604.26875464,0.00013698,2]
[353387111,1739808649282,-500.0,0.00013698,2]
[353387112,1739808649298,-500.0,0.00013698,2]
[353387113,1739808649310,-500.0,0.00013698,2]
[353387114,1739808649323,-500.0,0.00013698,2]
[353387115,1739808649336,-500.0,0.00013698,2]
[353387116,1739808649348,-500.0,0.00013698,2]
[353387117,1739808649361,-500.0,0.00013698,2]
[353387118,1739808649374,-500.0,0.00013698,2]
[353387119,1739808649388,-500.0,0.00013698,2]
[353387120,1739808649401,-500.0,0.00013698,2]
[353387121,1739808649415,-732.59,0.00013698,2]
[353387122,1739808649428,-500.0,0.00013698,2]
[353387123,1739808649442,-500.0,0.00013698,2]
[353387124,1739808649457,-500.0,0.00013698,2]
[353387125,1739808649470,-500.0,0.00013698,2]
[353387126,1739808649490,-500.0,0.00013698,2]
[353387127,1739808649503,-534.63082169,0.00013698,2]
[353387128,1739808649516,-500.0,0.00013698,2]
[353387129,1739808649530,-500.0,0.00013698,2]
[353387130,1739808649544,-500.0,0.00013698,2]
[353387131,1739808649557,-674.25,0.00013698,2]
[353387132,1739808649571,-500.0,0.00013698,2]
[353387133,1739808649585,-580.73,0.00013698,2]
[353387134,1739808649599,-500.0,0.00013698,2]
[353387135,1739808649612,-500.0,0.00013698,2]
[353387136,1739808649625,-540.38,0.00013698,2]
[353387137,1739808649639,-526.58,0.00013698,2]
[353387138,1739808649651,-500.0,0.00013698,2]
[353387139,1739808649664,-1547.95,0.00013698,2]
[353387140,1739808649680,-500.0,0.00013698,2]
[353387141,1739808649693,-968.22,0.00013698,2]
[353387142,1739808649705,-500.0,0.00013698,2]
[353387143,1739808649718,-500.0,0.00013698,2]
[353387144,1739808649731,-721.79,0.00013698,2]
[353387145,1739808649743,-500.0,0.00013698,2]
[353387146,1739808649756,-500.0,0.00013698,2]
[353387147,1739808649768,-500.0,0.00013698,2]
[353387148,1739808649781,-511.12160747,0.00013698,2]
[353387149,1739808649793,-500.0,0.00013698,2]
[353387150,1739808649806,-500.0,0.00013698,2]
[353387151,1739808649829,-471.1264259,0.00013698,2]
[353387152,1739808649846,-500.0,0.00013698,2]
[353387153,1739808649860,-500.0,0.00013698,2]
[353387154,1739808649874,-817.16,0.00013698,2]
[353387155,1739808649889,-500.0,0.00013698,2]
[353387156,1739808649902,-509.83277624,0.00013698,2]
[353387157,1739808649916,-1218.87,0.00013698,2]
[353387158,1739808649928,-518.66056122,0.00013698,2]
[353387159,1739808649942,-937.07,0.00013698,2]
[353387160,1739808649955,-500.0,0.00013698,2]
[353387161,1739808649968,-500.0,0.00013698,2]
[353387162,1739808649981,-500.0,0.00013698,2]
[353387163,1739808649994,-500.0,0.00013698,2]
[353387164,1739808650008,-500.0,0.00013698,2]
[353387165,1739808650020,-500.0,0.00013698,2]
[353387166,1739808650032,-500.0,0.00013698,2]
[353387167,1739808650046,-840.26,0.00013698,2]
[353387168,1739808650057,-500.0,0.00013698,2]
[353387169,1739808650070,-500.0,0.00013698,2]
[353387170,1739808650082,-500.0,0.00013698,2]
[353387171,1739808650094,-500.0,0.00013698,2]
[353387172,1739808650106,-500.0,0.00013698,2]
[353387173,1739808650118,-500.0,0.00013698,2]
[353387174,1739808650130,-1047.93,0.00013698,2]
[353387175,1739808650142,-650.73,0.00013698,2]
[353387176,1739808650154,-500.0,0.00013698,2]
[353387177,1739808650166,-500.0,0.00013698,2]
[353387178,1739808650177,-847.87,0.00013698,2]
[353387179,1739808650189,-500.0,0.00013698,2]
[353387180,1739808650201,-500.0,0.00013698,2]
[353387181,1739808650212,-500.0,0.00013698,2]
[353387182,1739808650224,-500.0,0.00013698,2]
[353387183,1739808650235,-516.01,0.00013698,2]
[353387184,1739808650246,-437.6396831,0.00013698,2]
[353387185,1739808650655,-73.1903169,0.00013698,2]
[353387186,1739808650667,-500.0,0.00013698,2]
[353387187,1739808650678,-750.18,0.00013698,2]
[353387188,1739808650691,-500.0,0.00013698,2]
[353387189,1739808650702,-553.39,0.00013698,2]
[353387190,1739808650713,-1008.95,0.00013698,2]
[353387191,1739808650724,-816.46,0.00013698,2]
[353387192,1739808650734,-500.0,0.00013698,2]
[353387193,1739808650744,-900.2,0.00013698,2]
[353387194,1739808650754,-500.0,0.00013698,2]
[353387195,1739808650764,-500.0,0.00013698,2]
[353387196,1739808650773,-983.81,0.00013698,2]
[353387197,1739808650783,-632.76,0.00013698,2]
[353387198,1739808650794,-500.0,0.00013698,2]
[353387199,1739808650804,-500.0,0.00013698,2]
[353387200,1739808650813,-500.0,0.00013698,2]
[353387201,1739808650822,-500.0,0.00013698,2]
[353387202,1739808650832,-500.0,0.00013698,2]
[353387203,1739808650841,-651.22,0.00013698,2]
[353387204,1739808650851,-500.0,0.00013698,2]
[353387205,1739808650860,-500.0,0.00013698,2]
[353387206,1739808650869,-805.21,0.00013698,2]
[353387207,1739808650879,-549.95583035,0.00013698,2]
[353387208,1739808650889,-500.0,0.00013698,2]
[353387209,1739808650899,-500.0,0.00013698,2]
[353387210,1739808650908,-500.0,0.00013698,2]
[353387211,1739808651255,-500.0,0.00013698,2]
[353387212,1739808651283,-660.48,0.00013698,2]
[353387213,1739808651306,-500.0,0.00013698,2]
[353387214,1739808651315,-500.0,0.00013698,2]
[353387215,1739808651325,-500.0,0.00013698,2]
[353387216,1739808651335,-1280.9,0.00013698,2]
[353387217,1739808651345,-500.0,0.00013698,2]
[353387218,1739808651354,-500.0,0.00013698,2]
[353387219,1739808651364,-2417.31,0.00013698,2]
[353387220,1739808651374,-1133.64,0.00013698,2]
[353387221,1739808651384,-500.0,0.00013698,2]
[353387222,1739808651393,-500.0,0.00013698,2]
[353387223,1739808651403,-2006.91,0.00013698,2]
[353387224,1739808651412,-500.0,0.00013698,2]
[353387225,1739808651422,-832.36,0.00013698,2]
[353387226,1739808651432,-500.0,0.00013698,2]
[353387227,1739808651441,-500.0,0.00013698,2]
[353387228,1739808651451,-500.0,0.00013698,2]
[353387229,1739808651461,-500.0,0.00013698,2]
[353387230,1739808651470,-500.0,0.00013698,2]
[353387231,1739808651479,-500.0,0.00013698,2]
[353387232,1739808651489,-1188.46,0.00013698,2]
[353387233,1739808651499,-500.0,0.00013698,2]
[353387234,1739808651509,-500.0,0.00013698,2]
[353387235,1739808651519,-1022.75,0.00013698,2]
[353387236,1739808651529,-500.0,0.00013698,2]
[353387237,1739808651539,-500.0,0.00013698,2]
[353387238,1739808651551,-521.56,0.00013698,2]
[353387239,1739808651560,-840.29,0.00013698,2]
[353387240,1739808651570,-500.0,0.00013698,2]
[353387241,1739808651579,-500.0,0.00013698,2]
[353387242,1739808651589,-500.0,0.00013698,2]
[353387243,1739808651599,-500.0,0.00013698,2]
[353387244,1739808651609,-500.0,0.00013698,2]
[353387245,1739808651618,-500.0,0.00013698,2]
[353387246,1739808651628,-500.0,0.00013698,2]
[353387247,1739808651637,-500.0,0.00013698,2]
[353387248,1739808651646,-500.0,0.00013698,2]
[353387249,1739808651656,-500.0,0.00013698,2]
[353387250,1739808651666,-500.0,0.00013698,2]
[353387251,1739808651676,-1694.49,0.00013698,2]
[353387252,1739808651685,-500.0,0.00013698,2]
[353387253,1739808651694,-500.0,0.00013698,2]
[353387254,1739808651704,-500.0,0.00013698,2]
[353387255,1739808651714,-239.51599628,0.00013698,2]
[353387256,1739808651723,-500.0,0.00013698,2]
[353387257,1739808651733,-500.0,0.00013698,2]
[353387258,1739808651743,-544.77,0.00013698,2]
[353387259,1739808651753,-1015.96,0.00013698,2]
[353387260,1739808651763,-500.0,0.00013698,2]
[353387261,1739808651772,-507.83999728,0.00013698,2]
[353387262,1739808651782,-1086.82,0.00013698,2]
[353387263,1739808651791,-500.0,0.00013698,2]
[353387264,1739808651803,-2321.33,0.00013698,2]
[353387265,1739808651812,-500.0,0.00013698,2]
[353387266,1739808651822,-1100.32,0.00013698,2]
[353387267,1739808651831,-500.0,0.00013698,2]
[353387268,1739808651841,-500.0,0.00013698,2]
[353387269,1739808651850,-500.0,0.00013698,2]
[353387270,1739808651859,-500.0,0.00013698,2]
[353387271,1739808651868,-711.15,0.00013698,2]
[353387272,1739808651877,-425.28061749,0.00013698,2]
[353387273,1739808651886,-511.92,0.00013698,2]
[353387274,1739808651896,-500.0,0.00013698,2]
[353387275,1739808651906,-753.28,0.00013698,2]
[353387276,1739808651915,-500.0,0.00013698,2]
[353387277,1739808651924,-2485.22,0.00013698,2]
[353387278,1739808651934,-500.0,0.00013698,2]
[353387279,1739808651944,-976.24,0.00013698,2]
[353387280,1739808651954,-504.39,0.00013698,2]
[353387281,1739808651963,-500.0,0.00013698,2]
[353387282,1739808651973,-500.0,0.00013698,2]
[353387283,1739808651983,-500.0,0.00013698,2]
[353387284,1739808651992,-500.0,0.00013698,2]
[353387285,1739808652003,-500.0,0.00013698,2]
[353387286,1739808652012,-500.0,0.00013698,2]
[353387287,1739808652021,-500.0,0.00013698,2]
[353387288,1739808652031,-500.0,0.00013698,2]
[353387289,1739808652040,-500.0,0.00013698,2]
[353387290,1739808652051,-876.02,0.00013698,2]
[353387291,1739808652061,-500.0,0.00013698,2]
[353387292,1739808652070,-500.0,0.00013698,2]
[353387293,1739808652080,-754.85,0.00013698,2]
[353387294,1739808652089,-500.0,0.00013698,2]
[353387295,1739808652099,-500.0,0.00013698,2]
[353387296,1739808652108,-970.02,0.00013698,2]
[353387297,1739808652118,-838.42,0.00013698,2]
[353387298,1739808652128,-500.0,0.00013698,2]
[353387299,1739808652138,-500.0,0.00013698,2]
[353387300,1739808652147,-500.0,0.00013698,2]
[353387301,1739808652157,-500.0,0.00013698,2]
[353387302,1739808652166,-502.85360559,0.00013698,2]
[353387303,1739808652176,-500.0,0.00013698,2]
[353387304,1739808652186,-500.0,0.00013698,2]
[353387305,1739808652195,-500.0,0.00013698,2]
[353387306,1739808652204,-500.0,0.00013698,2]
[353387307,1739808652213,-503.59384647,0.00013698,2]
[353387308,1739808652222,-500.0,0.00013698,2]
[353387309,1739808652233,-500.0,0.00013698,2]
[353387310,1739808652242,-1415.29,0.00013698,2]
[353387311,1739808652252,-500.0,0.00013698,2]
[353387312,1739808652262,-500.0,0.00013698,2]
[353387313,1739808652271,-500.0,0.00013698,2]
[353387314,1739808652280,-501.18706162,0.00013698,2]
[353387315,1739808652290,-1411.31,0.00013698,2]
[353387316,1739808652303,-178.141785,0.00013698,2]
[353387317,1739808652312,-500.0,0.00013698,2]
[353387318,1739808652321,-500.0,0.00013698,2]
[353387319,1739808652330,-500.0,0.00013698,2]
[353387320,1739808652340,-977.08,0.00013698,2]
[353387321,1739808652349,-500.0,0.00013698,2]
[353387322,1739808652359,-500.89307136,0.00013698,2]
[353387323,1739808652368,-500.0,0.00013698,2]
[353387324,1739808652380,-557.15,0.00013698,2]
[353387325,1739808652390,-500.0,0.00013698,2]
[353387326,1739808652400,-500.0,0.00013698,2]
[353387327,1739808652409,-729.94,0.00013698,2]
[353387328,1739808652419,-630.44,0.00013698,2]
[353387329,1739808652428,-501.0920682,0.00013698,2]
[353387330,1739808652438,-1590.87,0.00013698,2]
[353387331,1739808652447,-500.0,0.00013698,2]
[353387332,1739808652456,-983.09,0.00013698,2]
[353387333,1739808652465,-500.0,0.00013698,2]
[353387334,1739808652475,-500.0,0.00013698,2]
[353387335,1739808652484,-1355.54,0.00013698,2]
[353387336,1739808652493,-500.0,0.00013698,2]
[353387337,1739808652503,-500.0,0.00013698,2]
[353387338,1739808652519,-169.148515,0.00013698,2]
[353387339,1739808652528,-516.0792518,0.00013698,2]
[353387340,1739808652538,-500.0,0.00013698,2]
[353387341,1739808652548,-500.0,0.00013698,2]
[353387342,1739808652558,-500.0,0.00013698,2]
[353387343,1739808652567,-500.0,0.00013698,2]
[353387344,1739808652577,-500.0,0.00013698,2]
[353387345,1739808652587,-500.0,0.00013698,2]
[353387346,1739808652596,-617.66,0.00013698,2]
[353387347,1739808652605,-890.71,0.00013698,2]
[353387348,1739808652615,-500.0,0.00013698,2]
[353387349,1739808652624,-500.0,0.00013698,2]
[353387350,1739808652634,-664.2,0.00013698,2]
[353387351,1739808652643,-500.0,0.00013698,2]
[353387352,1739808652652,-500.0,0.00013698,2]
[353387353,1739808652661,-523.0,0.00013698,2]
[353387354,1739808652670,-500.0,0.00013698,2]
[353387355,1739808652681,-159.282857,0.00013698,2]
[353387356,1739808652690,-527.12,0.00013698,2]
[353387357,1739808652700,-702.93,0.00013698,2]
[353387358,1739808652711,-500.0,0.00013698,2]
[353387359,1739808652721,-500.0,0.00013698,2]
[353387360,1739808652731,-500.0,0.00013698,2]
[353387361,1739808652741,-1175.53,0.00013698,2]
[353387362,1739808652751,-500.0,0.00013698,2]
[353387363,1739808652761,-158.35429326,0.00013698,2]
[353387364,1739808652771,-500.0,0.00013698,2]
[353387365,1739808652781,-500.0,0.00013698,2]
[353387366,1739808652790,-1296.19,0.00013698,2]
[353387367,1739808652803,-549.43,0.00013698,2]
[353387368,1739808652812,-1758.88,0.00013698,2]
[353387369,1739808652822,-500.29055026,0.00013698,2]
[353387370,1739808652832,-500.0,0.00013698,2]
[353387371,1739808652841,-500.0,0.00013698,2]
[353387372,1739808652851,-214.24514277,0.00013698,2]
[353387373,1739808652861,-500.0,0.00013698,2]
[353387374,1739808652871,-240.81066007,0.00013698,2]
[353387375,1739808652880,-502.45010614,0.00013698,2]
[353387376,1739808652890,-500.0,0.00013698,2]
[353387377,1739808652900,-1468.21,0.00013698,2]
[353387378,1739808652909,-500.0,0.00013698,2]
[353387379,1739808652919,-931.33,0.00013698,2]
[353387380,1739808652928,-500.0,0.00013698,2]
[353387381,1739808652937,-676.42,0.00013698,2]
[353387382,1739808652947,-500.0,0.00013698,2]
[353387383,1739808652956,-500.0,0.00013698,2]
[353387384,1739808652965,-500.0,0.00013698,2]
[353387385,1739808652975,-500.0,0.00013698,2]
[353387386,1739808652984,-500.0,0.00013698,2]
[353387387,1739808652993,-500.0,0.00013699,2]
[353387388,1739808653002,-1177.85,0.00013699,2]
[353387389,1739808653011,-568.09,0.00013699,2]
[353387390,1739808653021,-528.78,0.000137,2]
[353387391,1739808653030,-500.0,0.000137,5]
[353387392,1739808653039,-700.0,0.00013704,2]
[353387393,1739808653051,-500.0,0.00013704,2]
[353387394,1739808653061,-700.0,0.00013704,2]
[353387395,1739808653070,-336.42455086,0.00013732,2]
[353387396,1739808653080,-575.59359384,0.00013735,2]
[353387397,1739808653090,-260.74,0.00013743,2]
[353387398,1739808653100,-432.9373367,0.00013763,2]
[353387399,1739808653110,-15840.10390776,0.00013776,2]
[353387400,1739808653121,-500.0,0.00013777,2]
[353387401,1739808653130,-529.54661059,0.00013777,2]
[353387402,1739808653139,-1177.85,0.00013777,2]
[353387403,1739808653149,-1177.85,0.00013777,2]
[353387404,1739808653158,-150.0,0.00013778,2]
[353387405,1739808653167,-500.0,0.00013778,2]
[353387406,1739808653177,-500.0,0.00013778,2]
[353387407,1739808653187,-158.568017,0.00013778,2]
[353387408,1739808653196,-500.0,0.00013778,2]
[353387409,1739808653206,-500.0,0.00013778,2]
[353387410,1739808653215,-793.51,0.00013778,2]
[353387411,1739808653224,-500.0,0.00013778,2]
[353387412,1739808653234,-680.64,0.00013778,2]
[353387413,1739808653243,-500.0,0.00013778,2]
[353387414,1739808653253,-696.72,0.00013778,2]
[353387415,1739808653262,-1360.71,0.00013778,2]
[353387416,1739808653271,-500.0,0.00013778,2]
[353387417,1739808653281,-637.48,0.00013778,2]
[353387418,1739808653296,-794.87,0.00013778,2]
[353387419,1739808653305,-1049.34,0.00013778,2]
[353387420,1739808653315,-2710.8,0.00013778,2]
[353387421,1739808653324,-669.02,0.00013778,2]
[353387422,1739808653334,-769.08,0.00013778,2]
[353387423,1739808653343,-572.98,0.00013778,2]
[353387424,1739808653353,-990.85,0.00013778,2]
[353387425,1739808653363,-500.0,0.00013778,2]
[353387426,1739808653374,-611.41,0.00013778,2]
[353387427,1739808653383,-1177.85,0.00013779,2]
[353387428,1739808653392,-1177.85,0.00013779,2]
[353387429,1739808653402,-817.16,0.00013779,2]
[353387430,1739808653411,-503.9399804,0.0001378,2]
[353387431,1739808653421,-500.0,0.0001378,2]
[353387432,1739808653431,-500.0,0.0001378,2]
[353387433,1739808653442,-490.38135613,0.0001378,2]
[353387434,1739808653452,-500.0,0.0001378,2]
[353387435,1739808653462,-500.0,0.0001378,2]
[353387436,1739808653471,-500.0,0.0001378,2]
[353387437,1739808653481,-500.0,0.0001378,2]
[353387438,1739808653490,-509.32649776,0.0001378,2]
[353387439,1739808653499,-500.0,0.0001378,2]
[353387440,1739808653508,-500.0,0.0001378,2]
[353387441,1739808653518,-500.0,0.0001378,2]
[353387442,1739808653527,-500.0,0.0001378,2]
[353387443,1739808653537,-500.0,0.0001378,2]
[353387444,1739808653549,-559.81238518,0.0001378,2]
[353387445,1739808653558,-500.0,0.0001378,2]
[353387446,1739808653568,-500.0,0.0001378,2]
[353387447,1739808653578,-500.0,0.0001378,2]
[353387448,1739808653588,-572.56179204,0.0001378,2]
[353387449,1739808653597,-404.75633325,0.0001378,2]
[353387450,1739808653607,-500.0,0.0001378,2]
[353387451,1739808653618,-500.0,0.0001378,2]
[353387452,1739808653627,-500.0,0.0001378,2]
[353387453,1739808653637,-500.0,0.0001378,2]
[353387454,1739808653647,-500.0,0.0001378,2]
[353387455,1739808653657,-500.0,0.0001378,2]
[353387456,1739808653666,-500.0,0.0001378,2]
[353387457,1739808653676,-500.0,0.0001378,2]
[353387458,1739808653686,-500.0,0.0001378,2]
[353387459,1739808653695,-500.0,0.0001378,2]
[353387460,1739808653705,-500.0,0.0001378,2]
[353387461,1739808653715,-500.0,0.0001378,2]
[353387462,1739808653725,-500.0,0.0001378,2]
[353387463,1739808653735,-500.0,0.0001378,2]
[353387464,1739808653745,-736.96,0.0001378,2]
[353387465,1739808653754,-500.0,0.0001378,2]
[353387466,1739808653763,-500.0,0.0001378,2]
[353387467,1739808653773,-500.0,0.0001378,2]
[353387468,1739808653782,-500.0,0.0001378,2]
[353387469,1739808653791,-500.0,0.0001378,2]
[353387470,1739808653803,-500.0,0.0001378,2]
[353387471,1739808653813,-500.0,0.0001378,2]
[353387472,1739808653822,-500.0,0.0001378,2]
[353387473,1739808653831,-500.0,0.0001378,2]
[353387474,1739808653841,-500.0,0.0001378,2]
[353387475,1739808653850,-500.0,0.0001378,2]
[353387476,1739808653859,-500.0,0.0001378,2]
[353387477,1739808653869,-500.0,0.0001378,2]
[353387478,1739808653879,-500.0,0.0001378,2]
[353387479,1739808653888,-500.0,0.0001378,2]
[353387480,1739808653897,-500.0,0.0001378,2]
[353387481,1739808653907,-500.0,0.0001378,2]
[353387482,1739808653916,-563.01458737,0.0001378,2]
[353387483,1739808653925,-500.0,0.0001378,2]
[353387484,1739808653935,-500.0,0.0001378,2]
[353387485,1739808653945,-500.0,0.0001378,2]
[353387486,1739808653954,-500.0,0.0001378,2]
[353387487,1739808653964,-500.0,0.0001378,2]
[353387488,1739808653974,-500.0,0.0001378,2]
[353387489,1739808653984,-500.0,0.0001378,2]
[353387490,1739808653995,-500.0,0.0001378,2]
[353387491,1739808654004,-500.0,0.0001378,2]
[353387492,1739808654013,-500.0,0.0001378,2]
[353387493,1739808654022,-500.0,0.0001378,2]
[353387494,1739808654032,-500.0,0.0001378,2]
[353387495,1739808654042,-358.9288247,0.0001378,2]
[353387496,1739808654054,-500.0,0.0001378,2]
[353387497,1739808654064,-500.0,0.0001378,2]
[353387498,1739808654073,-500.0,0.0001378,2]
[353387499,1739808654083,-500.0,0.0001378,2]
[353387500,1739808654093,-500.0,0.0001378,2]
[353387501,1739808654103,-500.0,0.0001378,2]
[353387502,1739808654113,-500.0,0.0001378,2]
[353387503,1739808654122,-500.0,0.0001378,2]
[353387504,1739808654132,-500.0,0.0001378,2]
[353387505,1739808654141,-500.0,0.0001378,2]
[353387506,1739808654150,-500.0,0.0001378,2]
[353387507,1739808654160,-500.0,0.0001378,2]
[353387508,1739808654170,-500.0,0.0001378,2]
[353387509,1739808654180,-500.0,0.0001378,2]
[353387510,1739808654190,-500.0,0.0001378,2]
[353387511,1739808654200,-500.0,0.0001378,2]
[353387512,1739808654210,-500.0,0.0001378,2]
[353387513,1739808654219,-500.0,0.0001378,2]